Workbook

Sheet INGRESO DE DATOS
B3: 4
A8: COTIZACIÓN DE SEGURO MÉDICO
A10: SELECCIONE EL PAIS: | C10: ARGENTINA
A13: INGRESE LOS DATOS DEL PROPUESTO ASEGURADO:
C15: Nombre del Asegurado principal: | D15: NOMBRE Y APELLIDO
F17: Número de adultos en la póliza: | G17: 1 | I17: Número de hijos en la póliza: | J17: 0
F19: Edad del titular: | G19: 23 | I19: Edad de cónyuge: | J19: 19
A22: INGRESE EL NOMBRE DE LA AGENCIA ASESORA:
C24: Nombre de la Agencia : | D24: AGENCIA
A26: 4. ESCOJA EL PRODUCTO PARA VISUALIZAR LA COTIZACION RESPECTIVA :

Sheet Bupa Alpha
A10: Cotización de Seguro Médico - Bupa ALPHA | E10: País: | F10: =+'INGRESO DE DATOS'!$C$10 -> ARGENTINA
E12: Nombre del asegurado : | F12: =+'INGRESO DE DATOS'!$D$15 -> NOMBRE Y APELLIDO
E14: Broker / Agente : | F14: =+'INGRESO DE DATOS'!$D$24 -> AGENCIA
G16: Número de adultos en la póliza: | H16: =+'INGRESO DE DATOS'!$G$17 -> 1 | J16: Edad de Titular : | K16: =+'INGRESO DE DATOS'!$G$19 -> 23
G18: Número hijos (menos 24 de años): | H18: =+'INGRESO DE DATOS'!$J$17 -> 0 | J18: Edad de Cónyuge: | K18: =+'INGRESO DE DATOS'!$J$19 -> 19
G20: Fecha de cotización: | H20: =NOW() -> 2023-01-24T12:00:43.390
G22: TRUE | I22: COMPLICACIONES DE MATERNIDAD
G24: TRUE | I24: TRASPLANTE DE ORGANOS
D26: Deducibles | G26: PLAN 2 | H26: PLAN 3 | I26: PLAN 4 | J26: PLAN 5 | K26: PLAN 6
D27: Dentro o fuera del pais de residencia | G27: 1000 | H27: 2000 | I27: 5000 | J27: 10000 | K27: 20000
D29: Tarifas Anuales
D30: Prima de Titular : | G30: =IF(OR($F10="CHILE",$F10="HAITI",$F10="HONDURAS"),VLOOKUP($K$16,Tablas!$A$6:$H$68,4,TRUE),IF(OR($F10="COSTA RICA",$F10="EL SALVADOR"),VLOOKUP($K$16,Tablas!$A$151:$H$213,4,TRUE),IF(OR($F10="BELIZE",$F10="GUYANA",$F10="NICARAGUA",$F10="SURINAME",$F10="URUGUAY",$F10="CARIBBEAN",$F10="PERU"),VLOOKUP($K$16,Tablas!$A$296:$H$358,4,TRUE),IF($F10="VENEZUELA",VLOOKUP($K$16,Tablas!$A$441:$H$503,4,TRUE),IF(OR($F10="ARGENTINA",$F10="COLOMBIA",$F10="PARAGUAY"),VLOOKUP($K$16,Tablas!$A$586:$H$648,4,TRUE),0))))) -> 3701 | H30: =IF(OR($F10="CHILE",$F10="HAITI",$F10="HONDURAS"),VLOOKUP($K$16,Tablas!$A$6:$H$68,5,TRUE),IF(OR($F10="COSTA RICA",$F10="EL SALVADOR"),VLOOKUP($K$16,Tablas!$A$151:$H$213,5,TRUE),IF(OR($F10="BELIZE",$F10="GUYANA",$F10="NICARAGUA",$F10="SURINAME",$F10="URUGUAY",$F10="CARIBBEAN",$F10="PERU"),VLOOKUP($K$16,Tablas!$A$296:$H$358,5,TRUE),IF($F10="VENEZUELA",VLOOKUP($K$16,Tablas!$A$441:$H$503,5,TRUE),IF(OR($F10="ARGENTINA",$F10="COLOMBIA",$F10="PARAGUAY"),VLOOKUP($K$16,Tablas!$A$586:$H$648,5,TRUE),0))))) -> 2925 | I30: =IF(OR($F10="CHILE",$F10="HAITI",$F10="HONDURAS"),VLOOKUP($K$16,Tablas!$A$6:$H$68,6,TRUE),IF(OR($F10="COSTA RICA",$F10="EL SALVADOR"),VLOOKUP($K$16,Tablas!$A$151:$H$213,6,TRUE),IF(OR($F10="BELIZE",$F10="GUYANA",$F10="NICARAGUA",$F10="SURINAME",$F10="URUGUAY",$F10="CARIBBEAN",$F10="PERU"),VLOOKUP($K$16,Tablas!$A$296:$H$358,6,TRUE),IF($F10="VENEZUELA",VLOOKUP($K$16,Tablas!$A$441:$H$503,6,TRUE),IF(OR($F10="ARGENTINA",$F10="COLOMBIA",$F10="PARAGUAY"),VLOOKUP($K$16,Tablas!$A$586:$H$648,6,TRUE),0))))) -> 2242 | J30: =IF(OR($F10="CHILE",$F10="HAITI",$F10="HONDURAS"),VLOOKUP($K$16,Tablas!$A$6:$H$68,7,TRUE),IF(OR($F10="COSTA RICA",$F10="EL SALVADOR"),VLOOKUP($K$16,Tablas!$A$151:$H$213,7,TRUE),IF(OR($F10="BELIZE",$F10="GUYANA",$F10="NICARAGUA",$F10="SURINAME",$F10="URUGUAY",$F10="CARIBBEAN",$F10="PERU"),VLOOKUP($K$16,Tablas!$A$296:$H$358,7,TRUE),IF($F10="VENEZUELA",VLOOKUP($K$16,Tablas!$A$441:$H$503,7,TRUE),IF(OR($F10="ARGENTINA",$F10="COLOMBIA",$F10="PARAGUAY"),VLOOKUP($K$16,Tablas!$A$586:$H$648,7,TRUE),0))))) -> 1941 | K30: =IF(OR($F10="CHILE",$F10="HAITI",$F10="HONDURAS"),VLOOKUP($K$16,Tablas!$A$6:$H$68,8,TRUE),IF(OR($F10="COSTA RICA",$F10="EL SALVADOR"),VLOOKUP($K$16,Tablas!$A$151:$H$213,8,TRUE),IF(OR($F10="BELIZE",$F10="GUYANA",$F10="NICARAGUA",$F10="SURINAME",$F10="URUGUAY",$F10="CARIBBEAN",$F10="PERU"),VLOOKUP($K$16,Tablas!$A$296:$H$358,8,TRUE),IF($F10="VENEZUELA",VLOOKUP($K$16,Tablas!$A$441:$H$503,8,TRUE),IF(OR($F10="ARGENTINA",$F10="COLOMBIA",$F10="PARAGUAY"),VLOOKUP($K$16,Tablas!$A$586:$H$648,8,TRUE),0))))) -> 1473
D31: Prima de Cónyuge | G31: =IF($H$16=1,0,IF(OR($F10="CHILE",$F10="HAITI",$F10="HONDURAS"),VLOOKUP($K$18,Tablas!$A$6:$H$68,4,TRUE),IF(OR($F10="COSTA RICA",$F10="EL SALVADOR"),VLOOKUP($K$18,Tablas!$A$151:$H$213,4,TRUE),IF(OR($F10="BELIZE",$F10="GUYANA",$F10="NICARAGUA",$F10="SURINAME",$F10="URUGUAY",$F10="CARIBBEAN",$F10="PERU"),VLOOKUP($K$18,Tablas!$A$296:$H$358,4,TRUE),IF($F10="VENEZUELA",VLOOKUP($K$18,Tablas!$A$441:$H$503,4,TRUE),IF(OR($F10="ARGENTINA",$F10="COLOMBIA",$F10="PARAGUAY"),VLOOKUP($K$18,Tablas!$A$586:$H$648,4,TRUE),0)))))) -> 0 | H31: =IF($H$16=1,0,IF(OR($F10="CHILE",$F10="HAITI",$F10="HONDURAS"),VLOOKUP($K$18,Tablas!$A$6:$H$68,5,TRUE),IF(OR($F10="COSTA RICA",$F10="EL SALVADOR"),VLOOKUP($K$18,Tablas!$A$151:$H$213,5,TRUE),IF(OR($F10="BELIZE",$F10="GUYANA",$F10="NICARAGUA",$F10="SURINAME",$F10="URUGUAY",$F10="CARIBBEAN",$F10="PERU"),VLOOKUP($K$18,Tablas!$A$296:$H$358,5,TRUE),IF($F10="VENEZUELA",VLOOKUP($K$18,Tablas!$A$441:$H$503,5,TRUE),IF(OR($F10="ARGENTINA",$F10="COLOMBIA",$F10="PARAGUAY"),VLOOKUP($K$18,Tablas!$A$586:$H$648,5,TRUE),0)))))) -> 0 | I31: =IF($H$16=1,0,IF(OR($F10="CHILE",$F10="HAITI",$F10="HONDURAS"),VLOOKUP($K$18,Tablas!$A$6:$H$68,6,TRUE),IF(OR($F10="COSTA RICA",$F10="EL SALVADOR"),VLOOKUP($K$18,Tablas!$A$151:$H$213,6,TRUE),IF(OR($F10="BELIZE",$F10="GUYANA",$F10="NICARAGUA",$F10="SURINAME",$F10="URUGUAY",$F10="CARIBBEAN",$F10="PERU"),VLOOKUP($K$18,Tablas!$A$296:$H$358,6,TRUE),IF($F10="VENEZUELA",VLOOKUP($K$18,Tablas!$A$441:$H$503,6,TRUE),IF(OR($F10="ARGENTINA",$F10="COLOMBIA",$F10="PARAGUAY"),VLOOKUP($K$18,Tablas!$A$586:$H$648,6,TRUE),0)))))) -> 0 | J31: =IF($H$16=1,0,IF(OR($F10="CHILE",$F10="HAITI",$F10="HONDURAS"),VLOOKUP($K$18,Tablas!$A$6:$H$68,7,TRUE),IF(OR($F10="COSTA RICA",$F10="EL SALVADOR"),VLOOKUP($K$18,Tablas!$A$151:$H$213,7,TRUE),IF(OR($F10="BELIZE",$F10="GUYANA",$F10="NICARAGUA",$F10="SURINAME",$F10="URUGUAY",$F10="CARIBBEAN",$F10="PERU"),VLOOKUP($K$18,Tablas!$A$296:$H$358,7,TRUE),IF($F10="VENEZUELA",VLOOKUP($K$18,Tablas!$A$441:$H$503,7,TRUE),IF(OR($F10="ARGENTINA",$F10="COLOMBIA",$F10="PARAGUAY"),VLOOKUP($K$18,Tablas!$A$586:$H$648,7,TRUE),0)))))) -> 0 | K31: =IF($H$16=1,0,IF(OR($F10="CHILE",$F10="HAITI",$F10="HONDURAS"),VLOOKUP($K$18,Tablas!$A$6:$H$68,8,TRUE),IF(OR($F10="COSTA RICA",$F10="EL SALVADOR"),VLOOKUP($K$18,Tablas!$A$151:$H$213,8,TRUE),IF(OR($F10="BELIZE",$F10="GUYANA",$F10="NICARAGUA",$F10="SURINAME",$F10="URUGUAY",$F10="CARIBBEAN",$F10="PERU"),VLOOKUP($K$18,Tablas!$A$296:$H$358,8,TRUE),IF($F10="VENEZUELA",VLOOKUP($K$18,Tablas!$A$441:$H$503,8,TRUE),IF(OR($F10="ARGENTINA",$F10="COLOMBIA",$F10="PARAGUAY"),VLOOKUP($K$18,Tablas!$A$586:$H$648,8,TRUE),0)))))) -> 0
D32: Primas Hijos : | G32: =IF($H$18=0,0,IF(OR($F10="CHILE",$F10="HAITI",$F10="HONDURAS"),VLOOKUP($H$18,Tablas!$A$69:$H$71,4,TRUE),IF(OR($F10="COSTA RICA",$F10="EL SALVADOR"),VLOOKUP($H$18,Tablas!$A$214:$H$216,4,TRUE),IF(OR($F10="BELIZE",$F10="GUYANA",$F10="NICARAGUA",$F10="SURINAME",$F10="URUGUAY",$F10="CARIBBEAN",$F10="PERU"),VLOOKUP($H$18,Tablas!$A$359:$H$361,4,TRUE),IF($F10="VENEZUELA",VLOOKUP($H$18,Tablas!$A$504:$H$506,4,TRUE),IF(OR($F10="ARGENTINA",$F10="COLOMBIA",$F10="PARAGUAY"),VLOOKUP($H$18,Tablas!$A$649:$H$651,4,TRUE),0)))))) -> 0 | H32: =IF($H$18=0,0,IF(OR($F10="CHILE",$F10="HAITI",$F10="HONDURAS"),VLOOKUP($H$18,Tablas!$A$69:$H$71,5,TRUE),IF(OR($F10="COSTA RICA",$F10="EL SALVADOR"),VLOOKUP($H$18,Tablas!$A$214:$H$216,5,TRUE),IF(OR($F10="BELIZE",$F10="GUYANA",$F10="NICARAGUA",$F10="SURINAME",$F10="URUGUAY",$F10="CARIBBEAN",$F10="PERU"),VLOOKUP($H$18,Tablas!$A$359:$H$361,5,TRUE),IF($F10="VENEZUELA",VLOOKUP($H$18,Tablas!$A$504:$H$506,5,TRUE),IF(OR($F10="ARGENTINA",$F10="COLOMBIA",$F10="PARAGUAY"),VLOOKUP($H$18,Tablas!$A$649:$H$651,5,TRUE),0)))))) -> 0 | I32: =IF($H$18=0,0,IF(OR($F10="CHILE",$F10="HAITI",$F10="HONDURAS"),VLOOKUP($H$18,Tablas!$A$69:$H$71,6,TRUE),IF(OR($F10="COSTA RICA",$F10="EL SALVADOR"),VLOOKUP($H$18,Tablas!$A$214:$H$216,6,TRUE),IF(OR($F10="BELIZE",$F10="GUYANA",$F10="NICARAGUA",$F10="SURINAME",$F10="URUGUAY",$F10="CARIBBEAN",$F10="PERU"),VLOOKUP($H$18,Tablas!$A$359:$H$361,6,TRUE),IF($F10="VENEZUELA",VLOOKUP($H$18,Tablas!$A$504:$H$506,6,TRUE),IF(OR($F10="ARGENTINA",$F10="COLOMBIA",$F10="PARAGUAY"),VLOOKUP($H$18,Tablas!$A$649:$H$651,6,TRUE),0)))))) -> 0 | J32: =IF($H$18=0,0,IF(OR($F10="CHILE",$F10="HAITI",$F10="HONDURAS"),VLOOKUP($H$18,Tablas!$A$69:$H$71,7,TRUE),IF(OR($F10="COSTA RICA",$F10="EL SALVADOR"),VLOOKUP($H$18,Tablas!$A$214:$H$216,7,TRUE),IF(OR($F10="BELIZE",$F10="GUYANA",$F10="NICARAGUA",$F10="SURINAME",$F10="URUGUAY",$F10="CARIBBEAN",$F10="PERU"),VLOOKUP($H$18,Tablas!$A$359:$H$361,7,TRUE),IF($F10="VENEZUELA",VLOOKUP($H$18,Tablas!$A$504:$H$506,7,TRUE),IF(OR($F10="ARGENTINA",$F10="COLOMBIA",$F10="PARAGUAY"),VLOOKUP($H$18,Tablas!$A$649:$H$651,7,TRUE),0)))))) -> 0 | K32: =IF($H$18=0,0,IF(OR($F10="CHILE",$F10="HAITI",$F10="HONDURAS"),VLOOKUP($H$18,Tablas!$A$69:$H$71,8,TRUE),IF(OR($F10="COSTA RICA",$F10="EL SALVADOR"),VLOOKUP($H$18,Tablas!$A$214:$H$216,8,TRUE),IF(OR($F10="BELIZE",$F10="GUYANA",$F10="NICARAGUA",$F10="SURINAME",$F10="URUGUAY",$F10="CARIBBEAN",$F10="PERU"),VLOOKUP($H$18,Tablas!$A$359:$H$361,8,TRUE),IF($F10="VENEZUELA",VLOOKUP($H$18,Tablas!$A$504:$H$506,8,TRUE),IF(OR($F10="ARGENTINA",$F10="COLOMBIA",$F10="PARAGUAY"),VLOOKUP($H$18,Tablas!$A$649:$H$651,8,TRUE),0)))))) -> 0
D33: Prima Rider Complic. Maternidad | G33: =+IF($G$22=FALSE,0,Tablas!D$72) -> 225 | H33: =+IF($G$22=FALSE,0,Tablas!E$72) -> 225 | I33: =+IF($G$22=FALSE,0,Tablas!F$72) -> 225 | J33: =+IF($G$22=FALSE,0,Tablas!G$72) -> 225 | K33: =+IF($G$22=FALSE,0,Tablas!H$72) -> 225
D34: Prima Rider Trasplante Organos | G34: =+IF($G$24=FALSE,0,Tablas!D$73) -> 300 | H34: =+IF($G$24=FALSE,0,Tablas!E$73) -> 300 | I34: =+IF($G$24=FALSE,0,Tablas!F$73) -> 300 | J34: =+IF($G$24=FALSE,0,Tablas!G$73) -> 300 | K34: =+IF($G$24=FALSE,0,Tablas!H$73) -> 300
D35: TOTAL PRIMA NETA : | G35: =SUM(G30:G34) -> 4226 | H35: 3450 | I35: 2767 | J35: 2466 | K35: 1998
D36: Costo Administrativo Anual : | G36: 75 | H36: 75 | I36: 75 | J36: 75 | K36: 75
D37: GRAN TOTAL : | G37: =SUM(G35:G36) -> 4301 | H37: =SUM(H35:H36) -> 3525 | I37: =SUM(I35:I36) -> 2842 | J37: =SUM(J35:J36) -> 2541 | K37: =SUM(K35:K36) -> 2073
D39: Tarifas Semestrales
D40: Prima de Titular : | G40: =IF(OR($F10="CHILE",$F10="HAITI",$F10="HONDURAS"),VLOOKUP($K$16,Tablas!$A$78:$H$140,4,TRUE),IF(OR($F10="COSTA RICA",$F10="EL SALVADOR"),VLOOKUP($K$16,Tablas!$A$223:$H$285,4,TRUE),IF(OR($F10="BELIZE",$F10="GUYANA",$F10="NICARAGUA",$F10="SURINAME",$F10="URUGUAY",$F10="CARIBBEAN",$F10="PERU"),VLOOKUP($K$16,Tablas!$A$368:$H$430,4,TRUE),IF($F10="VENEZUELA",VLOOKUP($K$16,Tablas!$A$513:$H$575,4,TRUE),IF(OR($F10="ARGENTINA",$F10="COLOMBIA",$F10="PARAGUAY"),VLOOKUP($K$16,Tablas!$A$658:$H$720,4,TRUE),0))))) -> 1961.53 | H40: =IF(OR($F10="CHILE",$F10="HAITI",$F10="HONDURAS"),VLOOKUP($K$16,Tablas!$A$78:$H$140,5,TRUE),IF(OR($F10="COSTA RICA",$F10="EL SALVADOR"),VLOOKUP($K$16,Tablas!$A$223:$H$285,5,TRUE),IF(OR($F10="BELIZE",$F10="GUYANA",$F10="NICARAGUA",$F10="SURINAME",$F10="URUGUAY",$F10="CARIBBEAN",$F10="PERU"),VLOOKUP($K$16,Tablas!$A$368:$H$430,5,TRUE),IF($F10="VENEZUELA",VLOOKUP($K$16,Tablas!$A$513:$H$575,5,TRUE),IF(OR($F10="ARGENTINA",$F10="COLOMBIA",$F10="PARAGUAY"),VLOOKUP($K$16,Tablas!$A$658:$H$720,5,TRUE),0))))) -> 1550.25 | I40: =IF(OR($F10="CHILE",$F10="HAITI",$F10="HONDURAS"),VLOOKUP($K$16,Tablas!$A$78:$H$140,6,TRUE),IF(OR($F10="COSTA RICA",$F10="EL SALVADOR"),VLOOKUP($K$16,Tablas!$A$223:$H$285,6,TRUE),IF(OR($F10="BELIZE",$F10="GUYANA",$F10="NICARAGUA",$F10="SURINAME",$F10="URUGUAY",$F10="CARIBBEAN",$F10="PERU"),VLOOKUP($K$16,Tablas!$A$368:$H$430,6,TRUE),IF($F10="VENEZUELA",VLOOKUP($K$16,Tablas!$A$513:$H$575,6,TRUE),IF(OR($F10="ARGENTINA",$F10="COLOMBIA",$F10="PARAGUAY"),VLOOKUP($K$16,Tablas!$A$658:$H$720,6,TRUE),0))))) -> 1188.26 | J40: =IF(OR($F10="CHILE",$F10="HAITI",$F10="HONDURAS"),VLOOKUP($K$16,Tablas!$A$78:$H$140,7,TRUE),IF(OR($F10="COSTA RICA",$F10="EL SALVADOR"),VLOOKUP($K$16,Tablas!$A$223:$H$285,7,TRUE),IF(OR($F10="BELIZE",$F10="GUYANA",$F10="NICARAGUA",$F10="SURINAME",$F10="URUGUAY",$F10="CARIBBEAN",$F10="PERU"),VLOOKUP($K$16,Tablas!$A$368:$H$430,7,TRUE),IF($F10="VENEZUELA",VLOOKUP($K$16,Tablas!$A$513:$H$575,7,TRUE),IF(OR($F10="ARGENTINA",$F10="COLOMBIA",$F10="PARAGUAY"),VLOOKUP($K$16,Tablas!$A$658:$H$720,7,TRUE),0))))) -> 1028.73 | K40: =IF(OR($F10="CHILE",$F10="HAITI",$F10="HONDURAS"),VLOOKUP($K$16,Tablas!$A$78:$H$140,8,TRUE),IF(OR($F10="COSTA RICA",$F10="EL SALVADOR"),VLOOKUP($K$16,Tablas!$A$223:$H$285,8,TRUE),IF(OR($F10="BELIZE",$F10="GUYANA",$F10="NICARAGUA",$F10="SURINAME",$F10="URUGUAY",$F10="CARIBBEAN",$F10="PERU"),VLOOKUP($K$16,Tablas!$A$368:$H$430,8,TRUE),IF($F10="VENEZUELA",VLOOKUP($K$16,Tablas!$A$513:$H$575,8,TRUE),IF(OR($F10="ARGENTINA",$F10="COLOMBIA",$F10="PARAGUAY"),VLOOKUP($K$16,Tablas!$A$658:$H$720,8,TRUE),0))))) -> 780.69
D41: Prima de Cónyuge | G41: =IF($H$16=1,0,IF(OR($F10="CHILE",$F10="HAITI",$F10="HONDURAS"),VLOOKUP($K$18,Tablas!$A$78:$H$140,4,TRUE),IF(OR($F10="COSTA RICA",$F10="EL SALVADOR"),VLOOKUP($K$18,Tablas!$A$223:$H$285,4,TRUE),IF(OR($F10="BELIZE",$F10="GUYANA",$F10="NICARAGUA",$F10="SURINAME",$F10="URUGUAY",$F10="CARIBBEAN",$F10="PERU"),VLOOKUP($K$18,Tablas!$A$368:$H$430,4,TRUE),IF($F10="VENEZUELA",VLOOKUP($K$18,Tablas!$A$513:$H$575,4,TRUE),IF(OR($F10="ARGENTINA",$F10="COLOMBIA",$F10="PARAGUAY"),VLOOKUP($K$18,Tablas!$A$658:$H$720,4,TRUE),0)))))) -> 0 | H41: =IF($H$16=1,0,IF(OR($F10="CHILE",$F10="HAITI",$F10="HONDURAS"),VLOOKUP($K$18,Tablas!$A$78:$H$140,5,TRUE),IF(OR($F10="COSTA RICA",$F10="EL SALVADOR"),VLOOKUP($K$18,Tablas!$A$223:$H$285,5,TRUE),IF(OR($F10="BELIZE",$F10="GUYANA",$F10="NICARAGUA",$F10="SURINAME",$F10="URUGUAY",$F10="CARIBBEAN",$F10="PERU"),VLOOKUP($K$18,Tablas!$A$368:$H$430,5,TRUE),IF($F10="VENEZUELA",VLOOKUP($K$18,Tablas!$A$513:$H$575,5,TRUE),IF(OR($F10="ARGENTINA",$F10="COLOMBIA",$F10="PARAGUAY"),VLOOKUP($K$18,Tablas!$A$658:$H$720,5,TRUE),0)))))) -> 0 | I41: =IF($H$16=1,0,IF(OR($F10="CHILE",$F10="HAITI",$F10="HONDURAS"),VLOOKUP($K$18,Tablas!$A$78:$H$140,6,TRUE),IF(OR($F10="COSTA RICA",$F10="EL SALVADOR"),VLOOKUP($K$18,Tablas!$A$223:$H$285,6,TRUE),IF(OR($F10="BELIZE",$F10="GUYANA",$F10="NICARAGUA",$F10="SURINAME",$F10="URUGUAY",$F10="CARIBBEAN",$F10="PERU"),VLOOKUP($K$18,Tablas!$A$368:$H$430,6,TRUE),IF($F10="VENEZUELA",VLOOKUP($K$18,Tablas!$A$513:$H$575,6,TRUE),IF(OR($F10="ARGENTINA",$F10="COLOMBIA",$F10="PARAGUAY"),VLOOKUP($K$18,Tablas!$A$658:$H$720,6,TRUE),0)))))) -> 0 | J41: =IF($H$16=1,0,IF(OR($F10="CHILE",$F10="HAITI",$F10="HONDURAS"),VLOOKUP($K$18,Tablas!$A$78:$H$140,7,TRUE),IF(OR($F10="COSTA RICA",$F10="EL SALVADOR"),VLOOKUP($K$18,Tablas!$A$223:$H$285,7,TRUE),IF(OR($F10="BELIZE",$F10="GUYANA",$F10="NICARAGUA",$F10="SURINAME",$F10="URUGUAY",$F10="CARIBBEAN",$F10="PERU"),VLOOKUP($K$18,Tablas!$A$368:$H$430,7,TRUE),IF($F10="VENEZUELA",VLOOKUP($K$18,Tablas!$A$513:$H$575,7,TRUE),IF(OR($F10="ARGENTINA",$F10="COLOMBIA",$F10="PARAGUAY"),VLOOKUP($K$18,Tablas!$A$658:$H$720,7,TRUE),0)))))) -> 0 | K41: =IF($H$16=1,0,IF(OR($F10="CHILE",$F10="HAITI",$F10="HONDURAS"),VLOOKUP($K$18,Tablas!$A$78:$H$140,8,TRUE),IF(OR($F10="COSTA RICA",$F10="EL SALVADOR"),VLOOKUP($K$18,Tablas!$A$223:$H$285,8,TRUE),IF(OR($F10="BELIZE",$F10="GUYANA",$F10="NICARAGUA",$F10="SURINAME",$F10="URUGUAY",$F10="CARIBBEAN",$F10="PERU"),VLOOKUP($K$18,Tablas!$A$368:$H$430,8,TRUE),IF($F10="VENEZUELA",VLOOKUP($K$18,Tablas!$A$513:$H$575,8,TRUE),IF(OR($F10="ARGENTINA",$F10="COLOMBIA",$F10="PARAGUAY"),VLOOKUP($K$18,Tablas!$A$658:$H$720,8,TRUE),0)))))) -> 0
D42: Primas Hijos : | G42: =IF($H$18=0,0,IF(OR($F10="CHILE",$F10="HAITI",$F10="HONDURAS"),VLOOKUP($H$18,Tablas!$A$141:$H$143,4,TRUE),IF(OR($F10="COSTA RICA",$F10="EL SALVADOR"),VLOOKUP($H$18,Tablas!$A$286:$H$288,4,TRUE),IF(OR($F10="BELIZE",$F10="GUYANA",$F10="NICARAGUA",$F10="SURINAME",$F10="URUGUAY",$F10="CARIBBEAN",$F10="PERU"),VLOOKUP($H$18,Tablas!$A$431:$H$433,4,TRUE),IF($F10="VENEZUELA",VLOOKUP($H$18,Tablas!$A$576:$H$578,4,TRUE),IF(OR($F10="ARGENTINA",$F10="COLOMBIA",$F10="PARAGUAY"),VLOOKUP($H$18,Tablas!$A$721:$H$723,4,TRUE),0)))))) -> 0 | H42: =IF($H$18=0,0,IF(OR($F10="CHILE",$F10="HAITI",$F10="HONDURAS"),VLOOKUP($H$18,Tablas!$A$141:$H$143,5,TRUE),IF(OR($F10="COSTA RICA",$F10="EL SALVADOR"),VLOOKUP($H$18,Tablas!$A$286:$H$288,5,TRUE),IF(OR($F10="BELIZE",$F10="GUYANA",$F10="NICARAGUA",$F10="SURINAME",$F10="URUGUAY",$F10="CARIBBEAN",$F10="PERU"),VLOOKUP($H$18,Tablas!$A$431:$H$433,5,TRUE),IF($F10="VENEZUELA",VLOOKUP($H$18,Tablas!$A$576:$H$578,5,TRUE),IF(OR($F10="ARGENTINA",$F10="COLOMBIA",$F10="PARAGUAY"),VLOOKUP($H$18,Tablas!$A$721:$H$723,5,TRUE),0)))))) -> 0 | I42: =IF($H$18=0,0,IF(OR($F10="CHILE",$F10="HAITI",$F10="HONDURAS"),VLOOKUP($H$18,Tablas!$A$141:$H$143,6,TRUE),IF(OR($F10="COSTA RICA",$F10="EL SALVADOR"),VLOOKUP($H$18,Tablas!$A$286:$H$288,6,TRUE),IF(OR($F10="BELIZE",$F10="GUYANA",$F10="NICARAGUA",$F10="SURINAME",$F10="URUGUAY",$F10="CARIBBEAN",$F10="PERU"),VLOOKUP($H$18,Tablas!$A$431:$H$433,6,TRUE),IF($F10="VENEZUELA",VLOOKUP($H$18,Tablas!$A$576:$H$578,6,TRUE),IF(OR($F10="ARGENTINA",$F10="COLOMBIA",$F10="PARAGUAY"),VLOOKUP($H$18,Tablas!$A$721:$H$723,6,TRUE),0)))))) -> 0 | J42: =IF($H$18=0,0,IF(OR($F10="CHILE",$F10="HAITI",$F10="HONDURAS"),VLOOKUP($H$18,Tablas!$A$141:$H$143,7,TRUE),IF(OR($F10="COSTA RICA",$F10="EL SALVADOR"),VLOOKUP($H$18,Tablas!$A$286:$H$288,7,TRUE),IF(OR($F10="BELIZE",$F10="GUYANA",$F10="NICARAGUA",$F10="SURINAME",$F10="URUGUAY",$F10="CARIBBEAN",$F10="PERU"),VLOOKUP($H$18,Tablas!$A$431:$H$433,7,TRUE),IF($F10="VENEZUELA",VLOOKUP($H$18,Tablas!$A$576:$H$578,7,TRUE),IF(OR($F10="ARGENTINA",$F10="COLOMBIA",$F10="PARAGUAY"),VLOOKUP($H$18,Tablas!$A$721:$H$723,7,TRUE),0)))))) -> 0 | K42: =IF($H$18=0,0,IF(OR($F10="CHILE",$F10="HAITI",$F10="HONDURAS"),VLOOKUP($H$18,Tablas!$A$141:$H$143,8,TRUE),IF(OR($F10="COSTA RICA",$F10="EL SALVADOR"),VLOOKUP($H$18,Tablas!$A$286:$H$288,8,TRUE),IF(OR($F10="BELIZE",$F10="GUYANA",$F10="NICARAGUA",$F10="SURINAME",$F10="URUGUAY",$F10="CARIBBEAN",$F10="PERU"),VLOOKUP($H$18,Tablas!$A$431:$H$433,8,TRUE),IF($F10="VENEZUELA",VLOOKUP($H$18,Tablas!$A$576:$H$578,8,TRUE),IF(OR($F10="ARGENTINA",$F10="COLOMBIA",$F10="PARAGUAY"),VLOOKUP($H$18,Tablas!$A$721:$H$723,8,TRUE),0)))))) -> 0
D43: Prima Rider Complic. Maternidad | G43: =+IF($G$22=FALSE,0,Tablas!D$144) -> 119.25 | H43: =+IF($G$22=FALSE,0,Tablas!E$144) -> 119.25 | I43: =+IF($G$22=FALSE,0,Tablas!F$144) -> 119.25 | J43: =+IF($G$22=FALSE,0,Tablas!G$144) -> 119.25 | K43: =+IF($G$22=FALSE,0,Tablas!H$144) -> 119.25
D44: Prima Rider Trasplante Organos | G44: =+IF($G$24=FALSE,0,Tablas!D$145) -> 159 | H44: =+IF($G$24=FALSE,0,Tablas!E$145) -> 159 | I44: =+IF($G$24=FALSE,0,Tablas!F$145) -> 159 | J44: =+IF($G$24=FALSE,0,Tablas!G$145) -> 159 | K44: =+IF($G$24=FALSE,0,Tablas!H$145) -> 159
D45: TOTAL PRIMA NETA : | G45: =SUM(G40:G44) -> 2239.78 | H45: 1828.5 | I45: 1466.51 | J45: 1306.98 | K45: 1058.94
D46: Costo Administrativo Anual : | G46: 75 | H46: 75 | I46: 75 | J46: 75 | K46: 75
D47: GRAN TOTAL (1ra Cuota) : | G47: =SUM(G45:G46) -> 2314.78 | H47: =SUM(H45:H46) -> 1903.5 | I47: =SUM(I45:I46) -> 1541.51 | J47: =SUM(J45:J46) -> 1381.98 | K47: =SUM(K45:K46) -> 1133.94
D48: GRAN TOTAL (2da Cuota) : | G48: =G45 -> 2239.78 | H48: =H45 -> 1828.5 | I48: 1466.51 | J48: 1306.98 | K48: 1058.94
D49: Tarifas en US $ - Válidas desde 01 Enero 2022
D50: Este presupuesto solamente tiene carácter informativo y en ningún momento expresa compromiso legal para suministrarle cobertura de seguro. La emisión de una póliza de seguro Bupa está sujeta a todas las evaluaciones de riesgo por parte de Bupa y a la recepción de todos los pagos de prima requeridos.

Sheet Tablas (hidden)
A2: BUPA ALPHA - ZONE 2 | J2: FACTOR SEMESTRAL : | L2: 0.53 | N2: PAISES
A3: TARIFAS ANUALES | N3: ARGENTINA | O3: 6
A4: EDAD | N4: BELIZE | O4: 4
D5: DW2 | E5: DW3 | F5: DW4 | G5: DW5 | H5: DW6 | I5: DW2 | J5: DW3 | K5: DW4 | L5: DW5 | M5: DW6 | N5: CARIBBEAN | O5: 4
A6: 18 | D6: 3770 | E6: 2921 | F6: 2261 | G6: 1952 | H6: 1490 | I6: 0 | J6: 0 | K6: 0 | L6: 0 | M6: 0 | N6: CHILE | O6: 2 | Q6: TRUE | R6: TRUE
A7: 19 | D7: 3869 | E7: 3017 | F7: 2326 | G7: 2009 | H7: 1531 | I7: 0 | J7: 0 | K7: 0 | L7: 0 | M7: 0 | N7: COLOMBIA | O7: 6 | Q7: TRUE | R7: TRUE
A8: 20 | D8: 3973 | E8: 3104 | F8: 2393 | G8: 2068 | H8: 1575 | I8: 0 | J8: 0 | K8: 0 | L8: 0 | M8: 0 | N8: COSTA RICA | O8: 3 | Q8: TRUE | R8: TRUE
A9: 21 | D9: 4079 | E9: 3200 | F9: 2458 | G9: 2122 | H9: 1616 | I9: 0 | J9: 0 | K9: 0 | L9: 0 | M9: 0 | N9: EL SALVADOR | O9: 3 | Q9: TRUE | R9: TRUE
A10: 22 | D10: 4190 | E10: 3299 | F10: 2528 | G10: 2187 | H10: 1660 | I10: 0 | J10: 0 | K10: 0 | L10: 0 | M10: 0 | N10: GUYANA | O10: 4 | Q10: TRUE | R10: TRUE
A11: 23 | D11: 4297 | E11: 3403 | F11: 2596 | G11: 2243 | H11: 1705 | I11: 0 | J11: 0 | K11: 0 | L11: 0 | M11: 0 | N11: HAITI | O11: 2 | Q11: TRUE | R11: TRUE
A12: 24 | D12: 4404 | E12: 3492 | F12: 2670 | G12: 2306 | H12: 1748 | I12: 0 | J12: 0 | K12: 0 | L12: 0 | M12: 0 | N12: HONDURAS | O12: 2 | Q12: TRUE | R12: TRUE
A13: 25 | D13: 4512 | E13: 3593 | F13: 2734 | G13: 2368 | H13: 1793 | I13: 0 | J13: 0 | K13: 0 | L13: 0 | M13: 0 | N13: NICARAGUA | O13: 4 | Q13: TRUE | R13: TRUE
A14: 26 | D14: 4620 | E14: 3692 | F14: 2808 | G14: 2426 | H14: 1836 | I14: 0 | J14: 0 | K14: 0 | L14: 0 | M14: 0 | N14: PARAGUAY | O14: 6 | Q14: TRUE | R14: TRUE
A15: 27 | D15: 4732 | E15: 3790 | F15: 2873 | G15: 2488 | H15: 1884 | I15: 0 | J15: 0 | K15: 0 | L15: 0 | M15: 0 | N15: PERU | O15: 4 | Q15: TRUE | R15: TRUE
A16: 28 | D16: 4903 | E16: 3922 | F16: 2921 | G16: 2540 | H16: 1955 | I16: 0 | J16: 0 | K16: 0 | L16: 0 | M16: 0 | N16: SURINAME | O16: 4 | Q16: TRUE | R16: TRUE
A17: 29 | D17: 5078 | E17: 4051 | F17: 2970 | G17: 2594 | H17: 2024 | I17: 0 | J17: 0 | K17: 0 | L17: 0 | M17: 0 | N17: URUGUAY | O17: 4 | Q17: TRUE | R17: TRUE
A18: 30 | D18: 5251 | E18: 4178 | F18: 3018 | G18: 2642 | H18: 2096 | I18: 0 | J18: 0 | K18: 0 | L18: 0 | M18: 0 | N18: VENEZUELA | O18: 5 | Q18: TRUE | R18: TRUE
A19: 31 | D19: 5421 | E19: 4312 | F19: 3060 | G19: 2695 | H19: 2164 | I19: 0 | J19: 0 | K19: 0 | L19: 0 | M19: 0 | Q19: TRUE | R19: TRUE
A20: 32 | D20: 5596 | E20: 4442 | F20: 3113 | G20: 2746 | H20: 2240 | I20: 0 | J20: 0 | K20: 0 | L20: 0 | M20: 0 | Q20: TRUE | R20: TRUE
A21: 33 | D21: 5712 | E21: 4539 | F21: 3189 | G21: 2801 | H21: 2292 | I21: 0 | J21: 0 | K21: 0 | L21: 0 | M21: 0 | Q21: TRUE | R21: TRUE
A22: 34 | D22: 5829 | E22: 4635 | F22: 3265 | G22: 2863 | H22: 2348 | I22: 0 | J22: 0 | K22: 0 | L22: 0 | M22: 0 | Q22: TRUE | R22: TRUE
A23: 35 | D23: 5944 | E23: 4733 | F23: 3347 | G23: 2914 | H23: 2403 | I23: 0 | J23: 0 | K23: 0 | L23: 0 | M23: 0 | Q23: TRUE | R23: TRUE
A24: 36 | D24: 6060 | E24: 4832 | F24: 3424 | G24: 2972 | H24: 2458 | I24: 0 | J24: 0 | K24: 0 | L24: 0 | M24: 0 | Q24: TRUE | R24: TRUE
A25: 37 | D25: 6180 | E25: 4930 | F25: 3496 | G25: 3027 | H25: 2512 | I25: 0 | J25: 0 | K25: 0 | L25: 0 | M25: 0 | Q25: TRUE | R25: TRUE
A26: 38 | D26: 6292 | E26: 5037 | F26: 3562 | G26: 3086 | H26: 2560 | I26: 0 | J26: 0 | K26: 0 | L26: 0 | M26: 0 | Q26: TRUE | R26: TRUE
A27: 39 | D27: 6409 | E27: 5142 | F27: 3619 | G27: 3143 | H27: 2612 | I27: 0 | J27: 0 | K27: 0 | L27: 0 | M27: 0 | Q27: TRUE | R27: TRUE
A28: 40 | D28: 6527 | E28: 5251 | F28: 3680 | G28: 3200 | H28: 2658 | I28: 0 | J28: 0 | K28: 0 | L28: 0 | M28: 0 | Q28: TRUE | R28: TRUE
A29: 41 | D29: 6639 | E29: 5353 | F29: 3739 | G29: 3260 | H29: 2712 | I29: 0 | J29: 0 | K29: 0 | L29: 0 | M29: 0 | Q29: TRUE | R29: TRUE
A30: 42 | D30: 6756 | E30: 5465 | F30: 3800 | G30: 3317 | H30: 2757 | I30: 0 | J30: 0 | K30: 0 | L30: 0 | M30: 0 | Q30: TRUE | R30: TRUE
A31: 43 | D31: 6992 | E31: 5678 | F31: 3943 | G31: 3440 | H31: 2864 | I31: 0 | J31: 0 | K31: 0 | L31: 0 | M31: 0 | Q31: TRUE | R31: TRUE
A32: 44 | D32: 7226 | E32: 5891 | F32: 4087 | G32: 3570 | H32: 2963 | I32: 0 | J32: 0 | K32: 0 | L32: 0 | M32: 0 | Q32: TRUE | R32: TRUE
A33: 45 | D33: 7463 | E33: 6104 | F33: 4231 | G33: 3695 | H33: 3068 | I33: 0 | J33: 0 | K33: 0 | L33: 0 | M33: 0 | Q33: TRUE | R33: TRUE
A34: 46 | D34: 7699 | E34: 6323 | F34: 4372 | G34: 3817 | H34: 3173 | I34: 0 | J34: 0 | K34: 0 | L34: 0 | M34: 0 | Q34: TRUE | R34: TRUE
A35: 47 | D35: 7934 | E35: 6539 | F35: 4517 | G35: 3943 | H35: 3272 | I35: 0 | J35: 0 | K35: 0 | L35: 0 | M35: 0 | Q35: TRUE | R35: TRUE
A36: 48 | D36: 8160 | E36: 6653 | F36: 4645 | G36: 4055 | H36: 3330 | I36: 0 | J36: 0 | K36: 0 | L36: 0 | M36: 0 | Q36: TRUE | R36: TRUE
A37: 49 | D37: 8387 | E37: 6772 | F37: 4773 | G37: 4166 | H37: 3390 | I37: 0 | J37: 0 | K37: 0 | L37: 0 | M37: 0 | Q37: TRUE | R37: TRUE
A38: 50 | D38: 8616 | E38: 6892 | F38: 4903 | G38: 4281 | H38: 3450 | I38: 0 | J38: 0 | K38: 0 | L38: 0 | M38: 0 | Q38: TRUE | R38: TRUE
A39: 51 | D39: 8846 | E39: 7009 | F39: 5032 | G39: 4392 | H39: 3509 | I39: 0 | J39: 0 | K39: 0 | L39: 0 | M39: 0 | Q39: TRUE | R39: TRUE
A40: 52 | D40: 9073 | E40: 7127 | F40: 5161 | G40: 4503 | H40: 3570 | I40: 0 | J40: 0 | K40: 0 | L40: 0 | M40: 0 | Q40: TRUE | R40: TRUE
A41: 53 | D41: 9391 | E41: 7403 | F41: 5351 | G41: 4670 | H41: 3696 | I41: 0 | J41: 0 | K41: 0 | L41: 0 | M41: 0 | Q41: TRUE | R41: TRUE
A42: 54 | D42: 9707 | E42: 7678 | F42: 5539 | G42: 4834 | H42: 3824 | I42: 0 | J42: 0 | K42: 0 | L42: 0 | M42: 0 | Q42: TRUE | R42: TRUE
A43: 55 | D43: 10024 | E43: 7959 | F43: 5730 | G43: 5003 | H43: 3953 | I43: 0 | J43: 0 | K43: 0 | L43: 0 | M43: 0 | Q43: TRUE | R43: TRUE
A44: 56 | D44: 10346 | E44: 8234 | F44: 5921 | G44: 5168 | H44: 4084 | I44: 0 | J44: 0 | K44: 0 | L44: 0 | M44: 0 | Q44: TRUE | R44: TRUE
A45: 57 | D45: 10661 | E45: 8506 | F45: 6108 | G45: 5333 | H45: 4215 | I45: 0 | J45: 0 | K45: 0 | L45: 0 | M45: 0 | Q45: TRUE | R45: TRUE
A46: 58 | D46: 11224 | E46: 9078 | F46: 6507 | G46: 5694 | H46: 4521 | I46: 0 | J46: 0 | K46: 0 | L46: 0 | M46: 0 | Q46: TRUE | R46: TRUE
A47: 59 | D47: 11790 | E47: 9654 | F47: 6904 | G47: 6059 | H47: 4832 | I47: 0 | J47: 0 | K47: 0 | L47: 0 | M47: 0 | Q47: TRUE | R47: TRUE
A48: 60 | D48: 12358 | E48: 10226 | F48: 7303 | G48: 6420 | H48: 5143 | I48: 0 | J48: 0 | K48: 0 | L48: 0 | M48: 0 | Q48: TRUE | R48: TRUE
A49: 61 | D49: 13037 | E49: 10824 | F49: 7719 | G49: 6801 | H49: 5461 | I49: 0 | J49: 0 | K49: 0 | L49: 0 | M49: 0 | Q49: TRUE | R49: TRUE
A50: 62 | D50: 13778 | E50: 11429 | F50: 8137 | G50: 7199 | H50: 5781 | I50: 0 | J50: 0 | K50: 0 | L50: 0 | M50: 0 | Q50: TRUE | R50: TRUE
A51: 63 | D51: 14523 | E51: 12076 | F51: 8573 | G51: 7589 | H51: 6104 | I51: 0 | J51: 0 | K51: 0 | L51: 0 | M51: 0 | Q51: TRUE | R51: TRUE
A52: 64 | D52: 15309 | E52: 12773 | F52: 9031 | G52: 7991 | H52: 6426 | I52: 0 | J52: 0 | K52: 0 | L52: 0 | M52: 0 | Q52: TRUE | R52: TRUE
A53: 65 | D53: 16129 | E53: 13486 | F53: 9633 | G53: 8411 | H53: 6752 | I53: 0 | J53: 0 | K53: 0 | L53: 0 | M53: 0 | Q53: TRUE | R53: TRUE
A54: 66 | D54: 17164 | E54: 14308 | F54: 10318 | G54: 9001 | H54: 7157 | I54: 0 | J54: 0 | K54: 0 | L54: 0 | M54: 0 | Q54: TRUE | R54: TRUE
A55: 67 | D55: 18532 | E55: 15453 | F55: 11147 | G55: 9696 | H55: 7733 | I55: 0 | J55: 0 | K55: 0 | L55: 0 | M55: 0 | Q55: TRUE | R55: TRUE
A56: 68 | D56: 20097 | E56: 16755 | F56: 12091 | G56: 10518 | H56: 8388 | I56: 0 | J56: 0 | K56: 0 | L56: 0 | M56: 0 | Q56: TRUE | R56: TRUE
A57: 69 | D57: 21949 | E57: 18296 | F57: 13202 | G57: 11484 | H57: 9162 | I57: 0 | J57: 0 | K57: 0 | L57: 0 | M57: 0 | Q57: TRUE | R57: TRUE
A58: 70 | D58: 24054 | E58: 20353 | F58: 14393 | G58: 12654 | H58: 10071 | I58: 0 | J58: 0 | K58: 0 | L58: 0 | M58: 0 | Q58: TRUE | R58: TRUE
A59: 71 | D59: 26495 | E59: 22436 | F59: 15943 | G59: 13924 | H59: 11104 | I59: 0 | J59: 0 | K59: 0 | L59: 0 | M59: 0 | Q59: TRUE | R59: TRUE
A60: 72 | D60: 29313 | E60: 24804 | F60: 17644 | G60: 15418 | H60: 12285 | I60: 0 | J60: 0 | K60: 0 | L60: 0 | M60: 0 | Q60: TRUE | R60: TRUE
A61: 73 | D61: 32538 | E61: 27531 | F61: 19584 | G61: 17119 | H61: 13643 | I61: 0 | J61: 0 | K61: 0 | L61: 0 | M61: 0 | Q61: TRUE | R61: TRUE
A62: 74 | D62: 36280 | E62: 30694 | F62: 21838 | G62: 19028 | H62: 15219 | I62: 0 | J62: 0 | K62: 0 | L62: 0 | M62: 0 | Q62: TRUE | R62: TRUE
A63: 75 | D63: 40498 | E63: 35672 | F63: 25200 | G63: 21823 | H63: 16892 | I63: 0 | J63: 0 | K63: 0 | L63: 0 | M63: 0 | Q63: TRUE | R63: TRUE
A64: 76 | D64: 47861 | E64: 42143 | F64: 29260 | G64: 25231 | H64: 19494 | I64: 0 | J64: 0 | K64: 0 | L64: 0 | M64: 0 | Q64: TRUE | R64: TRUE
A65: 77 | D65: 55409 | E65: 48769 | F65: 34170 | G65: 29467 | H65: 22346 | I65: 0 | J65: 0 | K65: 0 | L65: 0 | M65: 0 | Q65: TRUE | R65: TRUE
A66: 78 | D66: 64433 | E66: 55690 | F66: 39510 | G66: 34066 | H66: 25597 | I66: 0 | J66: 0 | K66: 0 | L66: 0 | M66: 0 | Q66: TRUE | R66: TRUE
A67: 79 | D67: 73637 | E67: 63213 | F67: 46129 | G67: 39776 | H67: 29237 | I67: 0 | J67: 0 | K67: 0 | L67: 0 | M67: 0 | Q67: TRUE | R67: TRUE
A68: 80 | D68: 83943 | E68: 72246 | F68: 53174 | G68: 45857 | H68: 33005 | I68: 0 | J68: 0 | K68: 0 | L68: 0 | M68: 0 | Q68: TRUE | R68: TRUE
A69: 1 Child | B69: Hijo | D69: 1669 | E69: 1380 | F69: 974 | G69: 835 | H69: 713 | I69: 0 | J69: 0 | K69: 0 | L69: 0 | M69: 0 | Q69: TRUE | R69: TRUE
A70: 2 Children | B70: Hijos | D70: 2815 | E70: 2040 | F70: 1532 | G70: 1315 | H70: 1131 | I70: 0 | J70: 0 | K70: 0 | L70: 0 | M70: 0 | Q70: TRUE | R70: TRUE
A71: 3+ Children | B71: Hijos o más | D71: 4124 | E71: 2946 | F71: 2225 | G71: 1916 | H71: 1639 | I71: 0 | J71: 0 | K71: 0 | L71: 0 | M71: 0 | Q71: TRUE | R71: TRUE
A72: 1 | B72: Rider Comp. Maternidad | D72: 225 | E72: 225 | F72: 225 | G72: 225 | H72: 225
A73: 1 | B73: Transplante de organos | D73: 300 | E73: 300 | F73: 300 | G73: 300 | H73: 300
A75: TARIFAS SEMESTRALES
A76: EDAD
D77: DW2 | E77: DW3 | F77: DW4 | G77: DW5 | H77: DW6 | I77: DW2 | J77: DW3 | K77: DW4 | L77: DW5 | M77: DW6
A78: 18 | D78: =$L$2*D6 -> 1998.1 | E78: =$L$2*E6 -> 1548.13 | F78: 1198.33 | G78: 1034.56 | H78: 789.7 | I78: 0 | J78: 0 | K78: 0 | L78: 0 | M78: 0
A79: 19 | D79: =$L$2*D7 -> 2050.57 | E79: 1599.01 | F79: 1232.78 | G79: 1064.77 | H79: 811.43 | I79: 0 | J79: 0 | K79: 0 | L79: 0 | M79: 0
A80: 20 | D80: 2105.69 | E80: 1645.12 | F80: 1268.29 | G80: 1096.04 | H80: 834.75 | I80: 0 | J80: 0 | K80: 0 | L80: 0 | M80: 0
A81: 21 | D81: 2161.87 | E81: 1696 | F81: 1302.74 | G81: 1124.66 | H81: 856.48 | I81: 0 | J81: 0 | K81: 0 | L81: 0 | M81: 0
A82: 22 | D82: 2220.7 | E82: 1748.47 | F82: 1339.84 | G82: 1159.11 | H82: 879.8 | I82: 0 | J82: 0 | K82: 0 | L82: 0 | M82: 0
A83: 23 | D83: 2277.41 | E83: 1803.59 | F83: 1375.88 | G83: 1188.79 | H83: 903.65 | I83: 0 | J83: 0 | K83: 0 | L83: 0 | M83: 0
A84: 24 | D84: 2334.12 | E84: 1850.76 | F84: 1415.1 | G84: 1222.18 | H84: 926.44 | I84: 0 | J84: 0 | K84: 0 | L84: 0 | M84: 0
A85: 25 | D85: 2391.36 | E85: 1904.29 | F85: 1449.02 | G85: 1255.04 | H85: 950.29 | I85: 0 | J85: 0 | K85: 0 | L85: 0 | M85: 0
A86: 26 | D86: 2448.6 | E86: 1956.76 | F86: 1488.24 | G86: 1285.78 | H86: 973.08 | I86: 0 | J86: 0 | K86: 0 | L86: 0 | M86: 0
A87: 27 | D87: 2507.96 | E87: 2008.7 | F87: 1522.69 | G87: 1318.64 | H87: 998.52 | I87: 0 | J87: 0 | K87: 0 | L87: 0 | M87: 0
A88: 28 | D88: 2598.59 | E88: 2078.66 | F88: 1548.13 | G88: 1346.2 | H88: 1036.15 | I88: 0 | J88: 0 | K88: 0 | L88: 0 | M88: 0
A89: 29 | D89: 2691.34 | E89: 2147.03 | F89: 1574.1 | G89: 1374.82 | H89: 1072.72 | I89: 0 | J89: 0 | K89: 0 | L89: 0 | M89: 0
A90: 30 | D90: 2783.03 | E90: 2214.34 | F90: 1599.54 | G90: 1400.26 | H90: 1110.88 | I90: 0 | J90: 0 | K90: 0 | L90: 0 | M90: 0
A91: 31 | D91: 2873.13 | E91: 2285.36 | F91: 1621.8 | G91: 1428.35 | H91: 1146.92 | I91: 0 | J91: 0 | K91: 0 | L91: 0 | M91: 0
A92: 32 | D92: 2965.88 | E92: 2354.26 | F92: 1649.89 | G92: 1455.38 | H92: 1187.2 | I92: 0 | J92: 0 | K92: 0 | L92: 0 | M92: 0
A93: 33 | D93: 3027.36 | E93: 2405.67 | F93: 1690.17 | G93: 1484.53 | H93: 1214.76 | I93: 0 | J93: 0 | K93: 0 | L93: 0 | M93: 0
A94: 34 | D94: 3089.37 | E94: 2456.55 | F94: 1730.45 | G94: 1517.39 | H94: 1244.44 | I94: 0 | J94: 0 | K94: 0 | L94: 0 | M94: 0
A95: 35 | D95: 3150.32 | E95: 2508.49 | F95: 1773.91 | G95: 1544.42 | H95: 1273.59 | I95: 0 | J95: 0 | K95: 0 | L95: 0 | M95: 0
A96: 36 | D96: 3211.8 | E96: 2560.96 | F96: 1814.72 | G96: 1575.16 | H96: 1302.74 | I96: 0 | J96: 0 | K96: 0 | L96: 0 | M96: 0
A97: 37 | D97: 3275.4 | E97: 2612.9 | F97: 1852.88 | G97: 1604.31 | H97: 1331.36 | I97: 0 | J97: 0 | K97: 0 | L97: 0 | M97: 0
A98: 38 | D98: 3334.76 | E98: 2669.61 | F98: 1887.86 | G98: 1635.58 | H98: 1356.8 | I98: 0 | J98: 0 | K98: 0 | L98: 0 | M98: 0
A99: 39 | D99: 3396.77 | E99: 2725.26 | F99: 1918.07 | G99: 1665.79 | H99: 1384.36 | I99: 0 | J99: 0 | K99: 0 | L99: 0 | M99: 0
A100: 40 | D100: 3459.31 | E100: 2783.03 | F100: 1950.4 | G100: 1696 | H100: 1408.74 | I100: 0 | J100: 0 | K100: 0 | L100: 0 | M100: 0
A101: 41 | D101: 3518.67 | E101: 2837.09 | F101: 1981.67 | G101: 1727.8 | H101: 1437.36 | I101: 0 | J101: 0 | K101: 0 | L101: 0 | M101: 0
A102: 42 | D102: 3580.68 | E102: 2896.45 | F102: 2014 | G102: 1758.01 | H102: 1461.21 | I102: 0 | J102: 0 | K102: 0 | L102: 0 | M102: 0
A103: 43 | D103: 3705.76 | E103: 3009.34 | F103: 2089.79 | G103: 1823.2 | H103: 1517.92 | I103: 0 | J103: 0 | K103: 0 | L103: 0 | M103: 0
A104: 44 | D104: 3829.78 | E104: 3122.23 | F104: 2166.11 | G104: 1892.1 | H104: 1570.39 | I104: 0 | J104: 0 | K104: 0 | L104: 0 | M104: 0
A105: 45 | D105: 3955.39 | E105: 3235.12 | F105: 2242.43 | G105: 1958.35 | H105: 1626.04 | I105: 0 | J105: 0 | K105: 0 | L105: 0 | M105: 0
A106: 46 | D106: 4080.47 | E106: 3351.19 | F106: 2317.16 | G106: 2023.01 | H106: 1681.69 | I106: 0 | J106: 0 | K106: 0 | L106: 0 | M106: 0
A107: 47 | D107: 4205.02 | E107: 3465.67 | F107: 2394.01 | G107: 2089.79 | H107: 1734.16 | I107: 0 | J107: 0 | K107: 0 | L107: 0 | M107: 0
A108: 48 | D108: 4324.8 | E108: 3526.09 | F108: 2461.85 | G108: 2149.15 | H108: 1764.9 | I108: 0 | J108: 0 | K108: 0 | L108: 0 | M108: 0
A109: 49 | D109: 4445.11 | E109: 3589.16 | F109: 2529.69 | G109: 2207.98 | H109: 1796.7 | I109: 0 | J109: 0 | K109: 0 | L109: 0 | M109: 0
A110: 50 | D110: 4566.48 | E110: 3652.76 | F110: 2598.59 | G110: 2268.93 | H110: 1828.5 | I110: 0 | J110: 0 | K110: 0 | L110: 0 | M110: 0
A111: 51 | D111: 4688.38 | E111: 3714.77 | F111: 2666.96 | G111: 2327.76 | H111: 1859.77 | I111: 0 | J111: 0 | K111: 0 | L111: 0 | M111: 0
A112: 52 | D112: 4808.69 | E112: 3777.31 | F112: 2735.33 | G112: 2386.59 | H112: 1892.1 | I112: 0 | J112: 0 | K112: 0 | L112: 0 | M112: 0
A113: 53 | D113: 4977.23 | E113: 3923.59 | F113: 2836.03 | G113: 2475.1 | H113: 1958.88 | I113: 0 | J113: 0 | K113: 0 | L113: 0 | M113: 0
A114: 54 | D114: 5144.71 | E114: 4069.34 | F114: 2935.67 | G114: 2562.02 | H114: 2026.72 | I114: 0 | J114: 0 | K114: 0 | L114: 0 | M114: 0
A115: 55 | D115: 5312.72 | E115: 4218.27 | F115: 3036.9 | G115: 2651.59 | H115: 2095.09 | I115: 0 | J115: 0 | K115: 0 | L115: 0 | M115: 0
A116: 56 | D116: 5483.38 | E116: 4364.02 | F116: 3138.13 | G116: 2739.04 | H116: 2164.52 | I116: 0 | J116: 0 | K116: 0 | L116: 0 | M116: 0
A117: 57 | D117: 5650.33 | E117: 4508.18 | F117: 3237.24 | G117: 2826.49 | H117: 2233.95 | I117: 0 | J117: 0 | K117: 0 | L117: 0 | M117: 0
A118: 58 | D118: 5948.72 | E118: 4811.34 | F118: 3448.71 | G118: 3017.82 | H118: 2396.13 | I118: 0 | J118: 0 | K118: 0 | L118: 0 | M118: 0
A119: 59 | D119: 6248.7 | E119: 5116.62 | F119: 3659.12 | G119: 3211.27 | H119: 2560.96 | I119: 0 | J119: 0 | K119: 0 | L119: 0 | M119: 0
A120: 60 | D120: 6549.74 | E120: 5419.78 | F120: 3870.59 | G120: 3402.6 | H120: 2725.79 | I120: 0 | J120: 0 | K120: 0 | L120: 0 | M120: 0
A121: 61 | D121: 6909.61 | E121: 5736.72 | F121: 4091.07 | G121: 3604.53 | H121: 2894.33 | I121: 0 | J121: 0 | K121: 0 | L121: 0 | M121: 0
A122: 62 | D122: 7302.34 | E122: 6057.37 | F122: 4312.61 | G122: 3815.47 | H122: 3063.93 | I122: 0 | J122: 0 | K122: 0 | L122: 0 | M122: 0
A123: 63 | D123: 7697.19 | E123: 6400.28 | F123: 4543.69 | G123: 4022.17 | H123: 3235.12 | I123: 0 | J123: 0 | K123: 0 | L123: 0 | M123: 0
A124: 64 | D124: 8113.77 | E124: 6769.69 | F124: 4786.43 | G124: 4235.23 | H124: 3405.78 | I124: 0 | J124: 0 | K124: 0 | L124: 0 | M124: 0
A125: 65 | D125: 8548.37 | E125: 7147.58 | F125: 5105.49 | G125: 4457.83 | H125: 3578.56 | I125: 0 | J125: 0 | K125: 0 | L125: 0 | M125: 0
A126: 66 | D126: 9096.92 | E126: 7583.24 | F126: 5468.54 | G126: 4770.53 | H126: =$L$2*H54 -> 3793.21 | I126: 0 | J126: 0 | K126: 0 | L126: 0 | M126: 0
A127: 67 | D127: 9821.96 | E127: 8190.09 | F127: 5907.91 | G127: 5138.88 | H127: 4098.49 | I127: 0 | J127: 0 | K127: 0 | L127: 0 | M127: 0
A128: 68 | D128: 10651.41 | E128: 8880.15 | F128: 6408.23 | G128: 5574.54 | H128: 4445.64 | I128: 0 | J128: 0 | K128: 0 | L128: 0 | M128: 0
A129: 69 | D129: 11632.97 | E129: 9696.88 | F129: 6997.06 | G129: 6086.52 | H129: 4855.86 | I129: 0 | J129: 0 | K129: 0 | L129: 0 | M129: 0
A130: 70 | D130: 12748.62 | E130: 10787.09 | F130: 7628.29 | G130: 6706.62 | H130: 5337.63 | I130: 0 | J130: 0 | K130: 0 | L130: 0 | M130: 0
A131: 71 | D131: 14042.35 | E131: 11891.08 | F131: 8449.79 | G131: 7379.72 | H131: 5885.12 | I131: 0 | J131: 0 | K131: 0 | L131: 0 | M131: 0
A132: 72 | D132: 15535.89 | E132: 13146.12 | F132: 9351.32 | G132: 8171.54 | H132: 6511.05 | I132: 0 | J132: 0 | K132: 0 | L132: 0 | M132: 0
A133: 73 | D133: 17245.14 | E133: 14591.43 | F133: 10379.52 | G133: 9073.07 | H133: 7230.79 | I133: 0 | J133: 0 | K133: 0 | L133: 0 | M133: 0
A134: 74 | D134: 19228.4 | E134: 16267.82 | F134: 11574.14 | G134: 10084.84 | H134: 8066.07 | I134: 0 | J134: 0 | K134: 0 | L134: 0 | M134: 0
A135: 75 | D135: 21463.94 | E135: 18906.16 | F135: 13356 | G135: 11566.19 | H135: 8952.76 | I135: 0 | J135: 0 | K135: 0 | L135: 0 | M135: 0
A136: 76 | D136: 25366.33 | E136: 22335.79 | F136: 15507.8 | G136: 13372.43 | H136: 10331.82 | I136: 0 | J136: 0 | K136: 0 | L136: 0 | M136: 0
A137: 77 | D137: 29366.77 | E137: 25847.57 | F137: 18110.1 | G137: 15617.51 | H137: 11843.38 | I137: 0 | J137: 0 | K137: 0 | L137: 0 | M137: 0
A138: 78 | D138: 34149.49 | E138: 29515.7 | F138: 20940.3 | G138: 18054.98 | H138: 13566.41 | I138: 0 | J138: 0 | K138: 0 | L138: 0 | M138: 0
A139: 79 | D139: 39027.61 | E139: 33502.89 | F139: 24448.37 | G139: 21081.28 | H139: 15495.61 | I139: 0 | J139: 0 | K139: 0 | L139: 0 | M139: 0
A140: 80 | D140: 44489.79 | E140: 38290.38 | F140: 28182.22 | G140: 24304.21 | H140: 17492.65 | I140: 0 | J140: 0 | K140: 0 | L140: 0 | M140: 0
A141: 1 Child | B141: Hijo | D141: 884.57 | E141: 731.4 | F141: 516.22 | G141: 442.55 | H141: 377.89 | I141: 0 | J141: 0 | K141: 0 | L141: 0 | M141: 0
A142: 2 Children | B142: Hijos | D142: 1491.95 | E142: =$L$2*E70 -> 1081.2 | F142: 811.96 | G142: 696.95 | H142: 599.43 | I142: 0 | J142: 0 | K142: 0 | L142: 0 | M142: 0
A143: 3+ Children | B143: Hijos o más | D143: =$L$2*D71 -> 2185.72 | E143: 1561.38 | F143: 1179.25 | G143: 1015.48 | H143: 868.67 | I143: 0 | J143: 0 | K143: 0 | L143: 0 | M143: 0
A144: 1 | B144: Rider Comp. Maternidad | D144: =+D72*$L$2 -> 119.25 | E144: 119.25 | F144: 119.25 | G144: 119.25 | H144: 119.25
A145: 1 | B145: Transplante de organos | D145: 159 | E145: 159 | F145: 159 | G145: 159 | H145: 159
A147: BUPA ALPHA - ZONE 3
A148: TARIFAS ANUALES
A149: EDAD
D150: DW2 | E150: DW3 | F150: DW4 | G150: DW5 | H150: DW6 | I150: DW2 | J150: DW3 | K150: DW4 | L150: DW5 | M150: DW6
A151: 18 | D151: 4183 | E151: 3245 | F151: 2503 | G151: 2166 | H151: 1656 | I151: 0 | J151: 0 | K151: 0 | L151: 0 | M151: 0
A152: 19 | D152: 4297 | E152: 3342 | F152: 2574 | G152: 2229 | H152: 1704 | I152: 0 | J152: 0 | K152: 0 | L152: 0 | M152: 0
A153: 20 | D153: 4407 | E153: 3447 | F153: 2650 | G153: 2297 | H153: 1749 | I153: 0 | J153: 0 | K153: 0 | L153: 0 | M153: 0
A154: 21 | D154: 4526 | E154: 3550 | F154: 2725 | G154: 2361 | H154: 1799 | I154: 0 | J154: 0 | K154: 0 | L154: 0 | M154: 0
A155: 22 | D155: 4648 | E155: 3660 | F155: 2804 | G155: 2427 | H155: 1852 | I155: 0 | J155: 0 | K155: 0 | L155: 0 | M155: 0
A156: 23 | D156: 4763 | E156: 3770 | F156: 2879 | G156: 2499 | H156: 1898 | I156: 0 | J156: 0 | K156: 0 | L156: 0 | M156: 0
A157: 24 | D157: 4886 | E157: 3877 | F157: 2962 | G157: 2568 | H157: 1945 | I157: 0 | J157: 0 | K157: 0 | L157: 0 | M157: 0
A158: 25 | D158: 5002 | E158: 3989 | F158: 3043 | G158: 2632 | H158: 1993 | I158: 0 | J158: 0 | K158: 0 | L158: 0 | M158: 0
A159: 26 | D159: 5125 | E159: 4098 | F159: 3116 | G159: 2703 | H159: 2049 | I159: 0 | J159: 0 | K159: 0 | L159: 0 | M159: 0
A160: 27 | D160: 5242 | E160: 4206 | F160: 3197 | G160: 2771 | H160: 2096 | I160: 0 | J160: 0 | K160: 0 | L160: 0 | M160: 0
A161: 28 | D161: 5441 | E161: 4349 | F161: 3251 | G161: 2827 | H161: 2176 | I161: 0 | J161: 0 | K161: 0 | L161: 0 | M161: 0
A162: 29 | D162: 5635 | E162: 4490 | F162: 3303 | G162: 2884 | H162: 2252 | I162: 0 | J162: 0 | K162: 0 | L162: 0 | M162: 0
A163: 30 | D163: 5824 | E163: 4640 | F163: 3352 | G163: 2942 | H163: 2327 | I163: 0 | J163: 0 | K163: 0 | L163: 0 | M163: 0
A164: 31 | D164: 6021 | E164: 4787 | F164: 3405 | G164: 2997 | H164: 2405 | I164: 0 | J164: 0 | K164: 0 | L164: 0 | M164: 0
A165: 32 | D165: 6215 | E165: 4930 | F165: 3462 | G165: 3055 | H165: 2480 | I165: 0 | J165: 0 | K165: 0 | L165: 0 | M165: 0
A166: 33 | D166: 6343 | E166: 5033 | F166: 3544 | G166: 3115 | H166: 2545 | I166: 0 | J166: 0 | K166: 0 | L166: 0 | M166: 0
A167: 34 | D167: 6476 | E167: 5142 | F167: 3633 | G167: 3175 | H167: 2604 | I167: 0 | J167: 0 | K167: 0 | L167: 0 | M167: 0
A168: 35 | D168: 6602 | E168: 5257 | F168: 3721 | G168: 3239 | H168: 2666 | I168: 0 | J168: 0 | K168: 0 | L168: 0 | M168: 0
A169: 36 | D169: 6731 | E169: 5367 | F169: 3804 | G169: 3298 | H169: 2719 | I169: 0 | J169: 0 | K169: 0 | L169: 0 | M169: 0
A170: 37 | D170: 6858 | E170: 5470 | F170: 3894 | G170: 3357 | H170: 2782 | I170: 0 | J170: 0 | K170: 0 | L170: 0 | M170: 0
A171: 38 | D171: 6991 | E171: 5591 | F171: 3958 | G171: 3425 | H171: 2841 | I171: 0 | J171: 0 | K171: 0 | L171: 0 | M171: 0
A172: 39 | D172: 7117 | E172: 5705 | F172: 4021 | G172: 3491 | H172: 2896 | I172: 0 | J172: 0 | K172: 0 | L172: 0 | M172: 0
A173: 40 | D173: 7244 | E173: 5824 | F173: 4088 | G173: 3555 | H173: 2953 | I173: 0 | J173: 0 | K173: 0 | L173: 0 | M173: 0
A174: 41 | D174: 7367 | E174: 5945 | F174: 4156 | G174: 3626 | H174: 3008 | I174: 0 | J174: 0 | K174: 0 | L174: 0 | M174: 0
A175: 42 | D175: 7494 | E175: 6064 | F175: 4220 | G175: 3690 | H175: 3066 | I175: 0 | J175: 0 | K175: 0 | L175: 0 | M175: 0
A176: 43 | D176: 7758 | E176: 6301 | F176: 4380 | G176: 3823 | H176: 3178 | I176: 0 | J176: 0 | K176: 0 | L176: 0 | M176: 0
A177: 44 | D177: 8016 | E177: 6538 | F177: 4538 | G177: 3964 | H177: 3293 | I177: 0 | J177: 0 | K177: 0 | L177: 0 | M177: 0
A178: 45 | D178: 8288 | E178: 6774 | F178: 4694 | G178: 4099 | H178: 3403 | I178: 0 | J178: 0 | K178: 0 | L178: 0 | M178: 0
A179: 46 | D179: 8546 | E179: 7012 | F179: 4853 | G179: 4235 | H179: 3520 | I179: 0 | J179: 0 | K179: 0 | L179: 0 | M179: 0
A180: 47 | D180: 8809 | E180: 7248 | F180: 5012 | G180: 4371 | H180: 3633 | I180: 0 | J180: 0 | K180: 0 | L180: 0 | M180: 0
A181: 48 | D181: 9062 | E181: 7381 | F181: 5153 | G181: 4501 | H181: 3695 | I181: 0 | J181: 0 | K181: 0 | L181: 0 | M181: 0
A182: 49 | D182: 9314 | E182: 7515 | F182: 5298 | G182: 4619 | H182: 3758 | I182: 0 | J182: 0 | K182: 0 | L182: 0 | M182: 0
A183: 50 | D183: 9564 | E183: 7645 | F183: 5441 | G183: 4750 | H183: 3822 | I183: 0 | J183: 0 | K183: 0 | L183: 0 | M183: 0
A184: 51 | D184: 9814 | E184: 7772 | F184: 5581 | G184: 4872 | H184: 3887 | I184: 0 | J184: 0 | K184: 0 | L184: 0 | M184: 0
A185: 52 | D185: 10070 | E185: 7905 | F185: 5724 | G185: 5001 | H185: 3953 | I185: 0 | J185: 0 | K185: 0 | L185: 0 | M185: 0
A186: 53 | D186: 10422 | E186: 8212 | F186: 5936 | G186: 5183 | H186: 4098 | I186: 0 | J186: 0 | K186: 0 | L186: 0 | M186: 0
A187: 54 | D187: 10774 | E187: 8523 | F187: 6147 | G187: 5368 | H187: 4242 | I187: 0 | J187: 0 | K187: 0 | L187: 0 | M187: 0
A188: 55 | D188: 11128 | E188: 8830 | F188: 6361 | G188: 5553 | H188: 4391 | I188: 0 | J188: 0 | K188: 0 | L188: 0 | M188: 0
A189: 56 | D189: 11481 | E189: 9138 | F189: 6572 | G189: 5737 | H189: 4532 | I189: 0 | J189: 0 | K189: 0 | L189: 0 | M189: 0
A190: 57 | D190: 11832 | E190: 9449 | F190: 6786 | G190: 5921 | H190: 4680 | I190: 0 | J190: 0 | K190: 0 | L190: 0 | M190: 0
A191: 58 | D191: 12455 | E191: 10078 | F191: 7221 | G191: 6323 | H191: 5024 | I191: 0 | J191: 0 | K191: 0 | L191: 0 | M191: 0
A192: 59 | D192: 13078 | E192: 10711 | F192: 7660 | G192: 6726 | H192: 5368 | I192: 0 | J192: 0 | K192: 0 | L192: 0 | M192: 0
A193: 60 | D193: 13703 | E193: 11345 | F193: 8099 | G193: 7124 | H193: 5714 | I193: 0 | J193: 0 | K193: 0 | L193: 0 | M193: 0
A194: 61 | D194: 14465 | E194: 12009 | F194: 8560 | G194: 7540 | H194: 6067 | I194: 0 | J194: 0 | K194: 0 | L194: 0 | M194: 0
A195: 62 | D195: 15283 | E195: 12688 | F195: 9028 | G195: 7983 | H195: 6421 | I195: 0 | J195: 0 | K195: 0 | L195: 0 | M195: 0
A196: 63 | D196: 16112 | E196: 13403 | F196: 9512 | G196: 8421 | H196: 6769 | I196: 0 | J196: 0 | K196: 0 | L196: 0 | M196: 0
A197: 64 | D197: 16989 | E197: 14172 | F197: 10031 | G197: 8871 | H197: 7131 | I197: 0 | J197: 0 | K197: 0 | L197: 0 | M197: 0
A198: 65 | D198: 17897 | E198: 14966 | F198: 10688 | G198: 9331 | H198: 7494 | I198: 0 | J198: 0 | K198: 0 | L198: 0 | M198: 0
A199: 66 | D199: 19040 | E199: 15872 | F199: 11450 | G199: 9992 | H199: 7945 | I199: 0 | J199: 0 | K199: 0 | L199: 0 | M199: 0
A200: 67 | D200: 20568 | E200: 17152 | F200: 12373 | G200: 10761 | H200: 8587 | I200: 0 | J200: 0 | K200: 0 | L200: 0 | M200: 0
A201: 68 | D201: 22302 | E201: 18600 | F201: 13417 | G201: 11667 | H201: 9309 | I201: 0 | J201: 0 | K201: 0 | L201: 0 | M201: 0
A202: 69 | D202: 24347 | E202: 20301 | F202: 14649 | G202: 12745 | H202: 10169 | I202: 0 | J202: 0 | K202: 0 | L202: 0 | M202: 0
A203: 70 | D203: 26696 | E203: 22590 | F203: 15975 | G203: 14035 | H203: 11183 | I203: 0 | J203: 0 | K203: 0 | L203: 0 | M203: 0
... 515 more rows
